fUSD/lending_fUSD_20251017
["ID","MTS","AMOUNT","RATE_DAILY","PERIOD"]
[391645151,1760716274220,-753.74,0.00024931,2]
[391645152,1760716274229,-479.48530537,0.00024931,2]
[391645153,1760716274239,-500.0,0.00024931,2]
[391645154,1760716274249,-500.0,0.00024931,2]
[391645155,1760716274258,-1761.99,0.00024931,2]
[391645156,1760716274268,-500.0,0.00024931,2]
[391645157,1760716274278,-562.4554873,0.00024931,2]
[391645158,1760716274288,-660.97,0.00024931,2]
[391645159,1760716274297,-503.93970887,0.00024931,2]
[391645160,1760716274306,-232.61094684,0.00024931,2]
[391645161,1760716274316,-500.0,0.00024931,2]
[391645162,1760716274325,-500.0,0.00024931,2]
[391645163,1760716274336,-310.23679442,0.00024931,2]
[391645164,1760716274346,-501.81266378,0.00024931,2]
[391645165,1760716274355,-502.08532857,0.00024931,2]
[391645166,1760716274364,-500.0,0.00024931,2]
[391645167,1760716274374,-500.0,0.00024931,2]
[391645168,1760716274384,-500.0,0.00024931,2]
[391645169,1760716274394,-504.31462693,0.00024931,2]
[391645170,1760716274404,-500.0,0.00024931,2]
[391645171,1760716274413,-501.12437349,0.00024931,2]
[391645172,1760716274422,-502.23401575,0.00024931,2]
[391645173,1760716274431,-500.0,0.00024931,2]
[391645174,1760716274440,-500.0,0.00024931,2]
[391645175,1760716274450,-505.09405623,0.00024931,2]
[391645176,1760716274460,-500.0,0.00024931,2]
[391645177,1760716274470,-500.0,0.00024931,2]
[391645178,1760716274479,-500.0,0.00024931,2]
[391645179,1760716274488,-500.0,0.00024931,2]
[391645180,1760716274498,-500.0,0.00024931,2]
[391645181,1760716274507,-500.0,0.00024931,2]
[391645182,1760716274516,-500.0,0.00024931,2]
[391645183,1760716274525,-500.0,0.00024931,2]
[391645184,1760716274534,-182.18,0.00024931,2]
[391645185,1760716274543,-500.0,0.00024931,2]
[391645186,1760716274552,-500.0,0.00024931,2]
[391645187,1760716274562,-500.0,0.00024931,2]
[391645188,1760716274572,-500.0,0.00024931,2]
[391645189,1760716274586,-151.0,0.00024931,7]
[391645190,1760716274596,-500.0,0.00024931,2]
[391645191,1760716274607,-1320.61,0.00024931,2]
[391645192,1760716274618,-500.0,0.00024931,2]
[391645193,1760716274631,-500.0,0.00024931,2]
[391645194,1760716274642,-485.35394415,0.00024931,2]
[391645195,1760716274657,-501.95107553,0.00024931,2]
[391645196,1760716274667,-162.802046,0.00024931,7]
[391645197,1760716274680,-500.0,0.00024931,2]
[391645198,1760716274690,-500.0,0.00024931,2]
[391645199,1760716274701,-500.0,0.00024931,2]
[391645200,1760716274711,-530.05594012,0.00024931,2]
[391645201,1760716274722,-500.0,0.00024931,2]
[391645202,1760716274734,-500.0,0.00024931,2]
[391645203,1760716274744,-500.0,0.00024931,2]
[391645204,1760716274754,-500.0,0.00024931,2]
[391645205,1760716274764,-500.0,0.00024931,2]
[391645206,1760716274775,-570.07725865,0.00024931,2]
[391645207,1760716274784,-772.28,0.00024931,2]
[391645208,1760716274794,-460.05715661,0.00024931,2]
[391645209,1760716274803,-500.0,0.00024931,2]
[391645210,1760716274812,-500.0,0.00024931,2]
[391645211,1760716274822,-500.0,0.00024931,2]
[391645212,1760716274835,-482.81853886,0.00024931,2]
[391645213,1760716274845,-500.0,0.00024931,2]
[391645214,1760716274855,-502.62557005,0.00024931,2]
[391645215,1760716274863,-500.0,0.00024931,2]
[391645216,1760716274872,-500.0,0.00024931,2]
[391645217,1760716274884,-500.0,0.00024931,2]
[391645218,1760716274893,-151.0,0.00024931,7]
[391645219,1760716274903,-189.43470288,0.00024931,7]
[391645220,1760716274913,-513.84241688,0.00024931,2]
[391645221,1760716274922,-310.84313804,0.00024931,2]
[391645222,1760716274931,-500.0,0.00024931,2]
[391645223,1760716274941,-299.43956567,0.00024931,2]
[391645224,1760716274950,-500.0,0.00024931,2]
[391645225,1760716274959,-500.0,0.00024931,2]
[391645226,1760716274969,-500.0,0.00024931,2]
[391645227,1760716274979,-500.0,0.00024931,2]
[391645228,1760716274987,-500.0,0.00024931,2]
[391645229,1760716274996,-497.38143333,0.00024931,2]
[391645230,1760716275005,-327.30599358,0.00024931,2]
[391645231,1760716275015,-500.0,0.00024931,2]
[391645232,1760716275024,-500.0,0.00024931,2]
[391645233,1760716275034,-500.0,0.00024931,2]
[391645234,1760716275043,-151.0,0.00024931,7]
[391645235,1760716275052,-500.0,0.00024931,2]
[391645236,1760716275062,-500.0,0.00024931,2]
[391645237,1760716275072,-500.0,0.00024931,2]
[391645238,1760716275085,-506.19289672,0.00024931,2]
[391645239,1760716275095,-500.0,0.00024931,2]
[391645240,1760716275104,-500.0,0.00024931,2]
[391645241,1760716275114,-585.43336588,0.00024931,2]
[391645242,1760716275123,-500.0,0.00024931,2]
[391645243,1760716275133,-151.0,0.00024931,7]
[391645244,1760716275144,-500.0,0.00024931,2]
[391645245,1760716275154,-500.0,0.00024931,2]
[391645246,1760716275164,-500.0,0.00024931,2]
[391645247,1760716275174,-1345.39,0.00024931,2]
[391645248,1760716275183,-500.0,0.00024931,2]
[391645249,1760716275193,-500.0,0.00024931,2]
[391645250,1760716275203,-500.0,0.00024931,2]
[391645251,1760716275212,-500.0,0.00024931,2]
[391645252,1760716275221,-500.0,0.00024931,2]
[391645253,1760716275231,-500.0,0.00024931,2]
[391645254,1760716275240,-500.0,0.00024931,2]
[391645255,1760716275250,-151.0,0.00024931,7]
[391645256,1760716275260,-500.0,0.00024931,2]
[391645257,1760716275269,-500.0,0.00024931,2]
[391645258,1760716275279,-500.0,0.00024931,2]
[391645259,1760716275288,-346.03277637,0.00024931,2]
[391645260,1760716275297,-500.0,0.00024931,2]
[391645261,1760716275307,-567.91995718,0.00024931,2]
[391645262,1760716275316,-274.11937708,0.00024931,2]
[391645263,1760716275326,-500.0,0.00024931,2]
[391645264,1760716275339,-287.46799248,0.00024931,2]
[391645265,1760716275349,-500.0,0.00024931,2]
[391645266,1760716275358,-500.0,0.00024931,2]
[391645267,1760716275368,-500.0,0.00024931,2]
[391645268,1760716275378,-151.0,0.00024931,7]
[391645269,1760716275388,-500.0,0.00024931,2]
[391645270,1760716275397,-409.71584548,0.00024931,2]
[391645271,1760716275407,-284.2680019,0.00024931,2]
[391645272,1760716275416,-500.0,0.00024931,2]
[391645273,1760716275426,-500.0,0.00024931,2]
[391645274,1760716275435,-501.42932613,0.00024931,2]
[391645275,1760716275445,-500.0,0.00024931,2]
[391645276,1760716275454,-500.0,0.00024931,2]
[391645277,1760716275463,-2000.0,0.00024931,7]
[391645278,1760716275473,-389.80719572,0.00024931,2]
[391645279,1760716275483,-500.0,0.00024931,2]
[391645280,1760716275492,-500.0,0.00024931,2]
[391645281,1760716275502,-151.0,0.00024931,7]
[391645282,1760716275511,-151.0,0.00024931,7]
[391645283,1760716275521,-150.01100905,0.00024931,2]
[391645284,1760716275530,-500.0,0.00024931,2]
[391645285,1760716275539,-151.0,0.00024931,7]
[391645286,1760716275548,-500.0,0.00024931,2]
[391645287,1760716275558,-292.01934371,0.00024931,2]
[391645288,1760716275567,-500.0,0.00024931,2]
[391645289,1760716275577,-500.0,0.00024931,2]
[391645290,1760716275590,-500.0,0.00024931,2]
[391645291,1760716275599,-500.0,0.00024931,2]
[391645292,1760716275608,-500.0,0.00024931,2]
[391645293,1760716275618,-898.24,0.00024931,2]
[391645294,1760716275628,-479.82531017,0.00024931,2]
[391645295,1760716275641,-607.28077351,0.00024931,2]
[391645296,1760716275650,-500.0,0.00024931,2]
[391645297,1760716275660,-500.0,0.00024931,2]
[391645298,1760716275669,-500.0,0.00024931,2]
[391645299,1760716275679,-537.97173408,0.00024931,2]
[391645300,1760716275688,-645.55284731,0.00024931,2]
[391645301,1760716275697,-500.0,0.00024931,2]
[391645302,1760716275707,-500.0,0.00024931,2]
[391645303,1760716275717,-500.0,0.00024931,2]
[391645304,1760716275727,-500.0,0.00024931,2]
[391645305,1760716275736,-500.78502915,0.00024931,2]
[391645306,1760716275746,-500.0,0.00024931,2]
[391645307,1760716275756,-500.0,0.00024931,2]
[391645308,1760716275765,-501.17771239,0.00024931,2]
[391645309,1760716275773,-500.0,0.00024931,2]
[391645310,1760716275782,-500.0,0.00024931,2]
[391645311,1760716275791,-500.51671788,0.00024931,2]
[391645312,1760716275800,-501.60312216,0.00024931,2]
[391645313,1760716275810,-500.0,0.00024931,2]
[391645314,1760716275819,-494.18714288,0.00024931,2]
[391645315,1760716275828,-500.0,0.00024931,2]
[391645316,1760716275841,-500.0,0.00024931,2]
[391645317,1760716275851,-500.0,0.00024931,2]
[391645318,1760716275860,-500.91291988,0.00024931,2]
[391645319,1760716275869,-500.0,0.00024931,2]
[391645320,1760716275878,-500.0,0.00024931,2]
[391645321,1760716275888,-500.0,0.00024931,2]
[391645322,1760716275897,-503.11262232,0.00024931,2]
[391645323,1760716275907,-500.0,0.00024931,2]
[391645324,1760716275916,-500.0,0.00024931,2]
[391645325,1760716275926,-500.0,0.00024931,2]
[391645326,1760716275935,-500.0,0.00024931,2]
[391645327,1760716275945,-500.0,0.00024931,2]
[391645328,1760716275954,-500.0,0.00024931,2]
[391645329,1760716275964,-500.0,0.00024931,2]
[391645330,1760716275973,-500.0,0.00024931,2]
[391645331,1760716275983,-500.0,0.00024931,2]
[391645332,1760716275992,-443.20065875,0.00024931,2]
[391645333,1760716276002,-500.0,0.00024931,2]
[391645334,1760716276012,-500.0,0.00024931,2]
[391645335,1760716276022,-500.0,0.00024931,2]
[391645336,1760716276031,-500.0,0.00024931,2]
[391645337,1760716276041,-501.07260041,0.00024931,2]
[391645338,1760716276050,-282.54926157,0.00024931,2]
[391645339,1760716276060,-509.37196618,0.00024931,2]
[391645340,1760716276069,-500.0,0.00024931,2]
[391645341,1760716276080,-500.34932488,0.00024931,2]
[391645342,1760716276089,-500.0,0.00024931,2]
[391645343,1760716276099,-500.0,0.00024931,2]
[391645344,1760716276109,-500.0,0.00024931,2]
[391645345,1760716276118,-500.0,0.00024931,2]
[391645346,1760716276127,-500.61396884,0.00024931,2]
[391645347,1760716276136,-500.0,0.00024931,2]
[391645348,1760716276146,-500.0,0.00024931,2]
[391645349,1760716276155,-500.12642114,0.00024931,2]
[391645350,1760716276165,-1222.84,0.00024931,2]
[391645351,1760716276175,-500.0,0.00024931,2]
[391645352,1760716276185,-500.0,0.00024931,2]
[391645353,1760716276195,-500.31968849,0.00024931,2]
[391645354,1760716276205,-500.0,0.00024931,2]
[391645355,1760716276214,-500.0,0.00024931,2]
[391645356,1760716276224,-500.0,0.00024931,2]
[391645357,1760716276234,-500.0,0.00024931,2]
[391645358,1760716276243,-2109.95,0.00024931,2]
[391645359,1760716276253,-500.58242348,0.00024931,2]
[391645360,1760716276264,-500.0,0.00024931,2]
[391645361,1760716276274,-514.77424712,0.00024931,2]
[391645362,1760716276284,-413.48606077,0.00024931,2]
[391645363,1760716276294,-751.84,0.00024931,2]
[391645364,1760716276304,-500.0,0.00024931,2]
[391645365,1760716276313,-500.0,0.00024931,2]
[391645366,1760716276323,-500.0,0.00024931,2]
[391645367,1760716276335,-509.48557759,0.00024931,2]
[391645368,1760716276344,-500.0,0.00024931,2]
[391645369,1760716276354,-501.45200246,0.00024931,2]
[391645370,1760716276364,-551.61029123,0.00024931,2]
[391645371,1760716276373,-500.0,0.00024931,2]
[391645372,1760716276383,-500.0,0.00024931,2]
[391645373,1760716276393,-500.0,0.00024931,2]
[391645374,1760716276403,-500.0,0.00024931,2]
[391645375,1760716276412,-500.0,0.00024931,2]
[391645376,1760716276422,-500.0,0.00024931,2]
[391645377,1760716276432,-500.0,0.00024931,2]
[391645378,1760716276441,-500.0,0.00024931,2]
[391645379,1760716276451,-500.0,0.00024931,2]
[391645380,1760716276460,-500.43741803,0.00024931,2]
[391645381,1760716276470,-500.0,0.00024931,2]
[391645382,1760716276479,-500.15603132,0.00024931,2]
[391645383,1760716276489,-500.81022445,0.00024931,2]
[391645384,1760716276498,-603.58602398,0.00024931,2]
[391645385,1760716276507,-500.0,0.00024931,2]
[391645386,1760716276517,-500.0,0.00024931,2]
[391645387,1760716276526,-500.0,0.00024931,2]
[391645388,1760716276536,-500.0,0.00024931,2]
[391645389,1760716276545,-1024.46,0.00024931,2]
[391645390,1760716276555,-501.05396346,0.00024931,2]
[391645391,1760716276564,-509.89723452,0.00024931,2]
[391645392,1760716276574,-500.0,0.00024931,2]
[391645393,1760716276587,-623.47962555,0.00024931,2]
[391645394,1760716276598,-500.0,0.00024931,2]
[391645395,1760716276608,-833.66,0.00024931,2]
[391645396,1760716276618,-344.08711146,0.00024931,2]
[391645397,1760716276628,-500.0,0.00024931,2]
[391645398,1760716276638,-500.2727282,0.00024931,2]
[391645399,1760716276651,-1852.0,0.00024931,2]
[391645400,1760716276661,-500.0,0.00024931,2]
[391645401,1760716276671,-500.0,0.00024931,2]
[391645402,1760716276682,-500.0,0.00024931,2]
[391645403,1760716276693,-153.733574,0.00024931,3]
[391645404,1760716276703,-500.2445765,0.00024931,2]
[391645405,1760716276713,-196.87050629,0.00024931,2]
[391645406,1760716276723,-500.0,0.00024931,2]
[391645407,1760716276734,-500.0,0.00024931,2]
[391645408,1760716276744,-1836.796906,0.00024931,3]
[391645409,1760716276753,-500.0,0.00024931,2]
[391645410,1760716276764,-500.0,0.00024931,2]
[391645411,1760716276774,-500.0,0.00024931,2]
[391645412,1760716276783,-500.0,0.00024931,2]
[391645413,1760716276793,-500.40945085,0.00024931,2]
[391645414,1760716276803,-2060.09,0.00024931,2]
[391645415,1760716276813,-151.107744,0.00024931,3]
[391645416,1760716276823,-500.0,0.00024931,2]
[391645417,1760716276838,-456.83713576,0.00024931,2]
[391645418,1760716276848,-500.0,0.00024931,2]
[391645419,1760716276859,-500.0,0.00024931,2]
[391645420,1760716276870,-500.85699119,0.00024931,2]
[391645421,1760716276880,-500.0,0.00024931,2]
[391645422,1760716276890,-500.0,0.00024931,2]
[391645423,1760716276900,-367.73440615,0.00024931,2]
[391645424,1760716276909,-500.0,0.00024931,2]
[391645425,1760716276920,-500.0,0.00024931,2]
[391645426,1760716276930,-500.0,0.00024931,2]
[391645427,1760716276940,-500.0,0.00024931,2]
[391645428,1760716276950,-500.0,0.00024931,2]
[391645429,1760716276960,-153.733574,0.00024931,3]
[391645430,1760716276970,-500.0,0.00024931,2]
[391645431,1760716276980,-500.0,0.00024931,2]
[391645432,1760716276990,-500.0,0.00024931,2]
[391645433,1760716277000,-500.0,0.00024931,2]
[391645434,1760716277010,-529.49,0.00024931,2]
[391645435,1760716277020,-500.0,0.00024931,2]
[391645436,1760716277032,-500.0,0.00024931,2]
[391645437,1760716277042,-589.07805578,0.00024931,2]
[391645438,1760716277052,-1709.46,0.00024931,2]
[391645439,1760716277063,-438.45704586,0.00024931,2]
[391645440,1760716277073,-500.0,0.00024931,2]
[391645441,1760716277086,-500.0,0.00024931,2]
[391645442,1760716277096,-500.0,0.00024931,2]
[391645443,1760716277107,-179.38492247,0.00024931,2]
[391645444,1760716277117,-712.66,0.00024931,2]
[391645445,1760716277127,-500.0,0.00024931,2]
[391645446,1760716277137,-506.02068283,0.00024931,2]
[391645447,1760716277147,-500.0,0.00024931,2]
[391645448,1760716277158,-500.0,0.00024931,2]
[391645449,1760716277168,-500.0,0.00024931,2]
[391645450,1760716277178,-500.0,0.00024931,2]
[391645451,1760716277188,-500.0,0.00024931,2]
[391645452,1760716277198,-500.0,0.00024931,2]
[391645453,1760716277208,-609.73,0.00024931,2]
[391645454,1760716277218,-586.78921413,0.00024931,2]
[391645455,1760716277228,-500.0,0.00024931,2]
[391645456,1760716277238,-500.0,0.00024931,2]
[391645457,1760716277248,-500.0,0.00024931,2]
[391645458,1760716277258,-474.19042371,0.00024931,2]
[391645459,1760716277268,-500.0,0.00024931,2]
[391645460,1760716277278,-500.0,0.00024931,2]
[391645461,1760716277288,-151.0,0.00024931,7]
[391645462,1760716277298,-152.182058,0.00024931,7]
[391645463,1760716277308,-1708.64,0.00024931,2]
[391645464,1760716277318,-583.10772371,0.00024931,2]
[391645465,1760716277329,-523.65696936,0.00024931,2]
[391645466,1760716277341,-151.0,0.00024931,7]
[391645467,1760716277351,-500.0,0.00024931,2]
[391645468,1760716277362,-443.316014,0.00024931,7]
[391645469,1760716277372,-151.0,0.00024931,7]
[391645470,1760716277383,-563.03267059,0.00024931,2]
[391645471,1760716277393,-443.316014,0.00024931,7]
[391645472,1760716277403,-151.0,0.00024931,7]
[391645473,1760716277413,-432.565924,0.00024931,7]
[391645474,1760716277423,-2227.955231,0.00024931,3]
[391645475,1760716277433,-151.0,0.00024931,7]
[391645476,1760716277443,-500.0,0.00024931,2]
[391645477,1760716277453,-432.565924,0.00024931,7]
[391645478,1760716277463,-185.818094,0.00024931,7]
[391645479,1760716277474,-443.316014,0.00024931,7]
[391645480,1760716277484,-320.279112,0.00024931,7]
[391645481,1760716277494,-159.454842,0.00024931,7]
[391645482,1760716277504,-432.565924,0.00024931,7]
[391645483,1760716277514,-179.739173,0.00024931,7]
[391645484,1760716277524,-185.818094,0.00024931,7]
[391645485,1760716277534,-1031.44,0.00024931,2]
[391645486,1760716277545,-18851.029309,0.00024931,2]
[391645487,1760716277555,-320.279112,0.00024931,7]
[391645488,1760716277565,-432.565924,0.00024931,7]
[391645489,1760716277575,-443.316014,0.00024931,7]
[391645490,1760716277587,-765.728645,0.00024931,7]
[391645491,1760716277596,-159.454842,0.00024931,7]
[391645492,1760716277607,-179.739173,0.00024931,7]
[391645493,1760716277617,-151.0,0.00024931,7]
[391645494,1760716277627,-185.818094,0.00024931,7]
[391645495,1760716277638,-500.0,0.00024931,2]
[391645496,1760716277649,-320.279112,0.00024931,7]
[391645497,1760716277660,-765.728645,0.00024931,7]
[391645498,1760716277670,-500.0,0.00024931,2]
[391645499,1760716277682,-500.0,0.00024931,2]
[391645500,1760716277692,-159.454842,0.00024931,7]
[391645501,1760716277702,-179.739173,0.00024931,7]
[391645502,1760716277712,-151.0,0.00024931,7]
[391645503,1760716277724,-185.818094,0.00024931,7]
[391645504,1760716277734,-273.235496,0.00024931,7]
[391645505,1760716277744,-320.279112,0.00024931,7]
[391645506,1760716277755,-765.728645,0.00024931,7]
[391645507,1760716277765,-159.454842,0.00024931,7]
[391645508,1760716277775,-179.739173,0.00024931,7]
[391645509,1760716277785,-273.235496,0.00024931,7]
[391645510,1760716277796,-765.728645,0.00024931,7]
[391645511,1760716277806,-513.56362161,0.00024931,2]
[391645512,1760716277816,-151.0,0.00024931,7]
[391645513,1760716277827,-273.235496,0.00024931,7]
[391645514,1760716277838,-151.0,0.00024931,7]
[391645515,1760716277848,-500.0,0.00024931,2]
[391645516,1760716277858,-273.235496,0.00024931,7]
[391645517,1760716277868,-151.0,0.00024931,7]
[391645518,1760716277878,-151.0,0.00024931,7]
[391645519,1760716277888,-151.0,0.00024931,7]
[391645520,1760716277898,-500.0,0.00024931,2]
[391645521,1760716277908,-151.0,0.00024931,7]
[391645522,1760716277918,-500.0,0.00024931,2]
[391645523,1760716277928,-500.0,0.00024931,2]
[391645524,1760716277938,-151.0,0.00024931,7]
[391645525,1760716277948,-151.0,0.00024931,7]
[391645526,1760716277958,-500.0,0.00024931,2]
[391645527,1760716277968,-151.0,0.00024931,7]
[391645528,1760716277979,-500.0,0.00024931,2]
[391645529,1760716277988,-500.0,0.00024931,2]
[391645530,1760716277999,-151.0,0.00024931,7]
[391645531,1760716278008,-174.44775728,0.00024931,2]
[391645532,1760716278018,-470.43893288,0.00024931,2]
[391645533,1760716278028,-500.0,0.00024931,2]
[391645534,1760716278037,-500.99107387,0.00024931,2]
[391645535,1760716278047,-500.0,0.00024931,2]
[391645536,1760716278056,-500.0,0.00024931,2]
[391645537,1760716278067,-500.4542541,0.00024931,2]
[391645538,1760716278076,-500.0,0.00024931,2]
[391645539,1760716278088,-500.0,0.00024931,2]
[391645540,1760716278097,-151.0,0.00024931,7]
[391645541,1760716278107,-203.95374748,0.00024931,2]
[391645542,1760716278117,-151.0,0.00024931,7]
[391645543,1760716278127,-151.0,0.00024931,7]
[391645544,1760716278137,-500.0,0.00024931,2]
[391645545,1760716278147,-500.0,0.00024931,2]
[391645546,1760716278156,-151.0,0.00024931,7]
[391645547,1760716278166,-500.0,0.00024931,2]
[391645548,1760716278176,-500.0,0.00024931,2]
[391645549,1760716278186,-551.09659333,0.00024931,2]
[391645550,1760716278196,-500.0,0.00024931,2]
[391645551,1760716278206,-239.77051353,0.00024931,2]
[391645552,1760716278216,-500.0,0.00024931,2]
[391645553,1760716278226,-500.0,0.00024931,2]
[391645554,1760716278237,-500.0,0.00024931,2]
[391645555,1760716278247,-500.0,0.00024931,2]
[391645556,1760716278256,-151.0,0.00024931,7]
[391645557,1760716278266,-438.607764,0.00024931,7]
[391645558,1760716278276,-500.0,0.00024931,2]
[391645559,1760716278287,-500.0,0.00024931,2]
[391645560,1760716278297,-438.607764,0.00024931,7]
[391645561,1760716278307,-151.0,0.00024931,7]
[391645562,1760716278318,-500.0,0.00024931,2]
[391645563,1760716278328,-438.607764,0.00024931,7]
[391645564,1760716278342,-500.0,0.00024931,2]
[391645565,1760716278352,-438.607764,0.00024931,7]
[391645566,1760716278362,-151.0,0.00024931,7]
[391645567,1760716278372,-290.43436,0.00024931,7]
[391645568,1760716278382,-500.0,0.00024931,2]
[391645569,1760716278392,-290.43436,0.00024931,7]
[391645570,1760716278403,-504.47417496,0.00024931,2]
[391645571,1760716278412,-151.0,0.00024931,7]
[391645572,1760716278422,-151.0,0.00024931,7]
[391645573,1760716278432,-501.01941496,0.00024931,2]
[391645574,1760716278443,-500.71245767,0.00024931,2]
[391645575,1760716278452,-290.43436,0.00024931,7]
[391645576,1760716278463,-151.0,0.00024931,7]
[391645577,1760716278473,-500.0,0.00024931,2]
[391645578,1760716278483,-151.0,0.00024931,7]
[391645579,1760716278493,-500.55117249,0.00024931,2]
[391645580,1760716278504,-290.43436,0.00024931,7]
[391645581,1760716278514,-559.04,0.00024931,2]
[391645582,1760716278524,-500.0,0.00024931,2]
[391645583,1760716278535,-151.0,0.00024931,7]
[391645584,1760716278545,-500.0,0.00024931,2]
[391645585,1760716278555,-500.25567537,0.00024931,2]
[391645586,1760716278565,-500.0,0.00024931,2]
[391645587,1760716278575,-151.0,0.00024931,7]
[391645588,1760716278589,-500.0,0.00024931,2]
[391645589,1760716278599,-500.0,0.00024931,2]
[391645590,1760716278610,-151.0,0.00024931,7]
[391645591,1760716278620,-500.43136695,0.00024931,2]
[391645592,1760716278631,-151.0,0.00024931,7]
[391645593,1760716278642,-500.0,0.00024931,2]
[391645594,1760716278653,-151.0,0.00024931,7]
[391645595,1760716278664,-500.0,0.00024931,2]
[391645596,1760716278675,-289.455806,0.00024931,7]
[391645597,1760716278685,-227.615834,0.00024931,7]
[391645598,1760716278695,-500.41324134,0.00024931,2]
[391645599,1760716278706,-500.0,0.00024931,2]
[391645600,1760716278717,-227.615834,0.00024931,7]
[391645601,1760716278727,-500.0,0.00024931,2]
[391645602,1760716278737,-511.41180676,0.00024931,2]
[391645603,1760716278747,-227.615834,0.00024931,7]
[391645604,1760716278758,-227.615834,0.00024931,7]
[391645605,1760716278768,-151.0,0.00024931,7]
[391645606,1760716278778,-500.75881101,0.00024931,2]
[391645607,1760716278789,-500.0,0.00024931,2]
[391645608,1760716278799,-505.39784062,0.00024931,2]
[391645609,1760716278809,-500.0,0.00024931,2]
[391645610,1760716278820,-500.0,0.00024931,2]
[391645611,1760716278833,-500.99784966,0.00024931,2]
[391645612,1760716278843,-508.57968299,0.00024931,2]
[391645613,1760716278853,-500.0,0.00024931,2]
[391645614,1760716278863,-511.20078781,0.00024931,2]
[391645615,1760716278874,-500.0,0.00024931,2]
[391645616,1760716279055,-500.46213989,0.00024931,2]
[391645617,1760716279094,-344.56436218,0.00024931,2]
[391645618,1760716279104,-500.0,0.00024931,2]
[391645619,1760716279114,-513.78194557,0.00024931,2]
[391645620,1760716279124,-274.30063735,0.00024931,2]
[391645621,1760716279134,-500.90550034,0.00024931,2]
[391645622,1760716279144,-500.0,0.00024931,2]
[391645623,1760716279153,-571.16516239,0.00024931,2]
[391645624,1760716279163,-604.33676195,0.00024931,2]
[391645625,1760716279173,-224.14072,0.00024931,7]
[391645626,1760716279183,-616.40146017,0.00024931,2]
[391645627,1760716279193,-500.0,0.00024931,2]
[391645628,1760716279203,-500.0,0.00024931,2]
[391645629,1760716279212,-500.0,0.00024931,2]
[391645630,1760716279223,-500.0,0.00024931,2]
[391645631,1760716279233,-156.29877766,0.00024931,2]
[391645632,1760716279243,-500.0,0.00024931,2]
[391645633,1760716279253,-500.0,0.00024931,2]
[391645634,1760716279263,-500.76908748,0.00024931,2]
[391645635,1760716279274,-500.0,0.00024931,2]
[391645636,1760716279284,-500.0,0.00024931,2]
[391645637,1760716279294,-159.321966,0.00024931,7]
[391645638,1760716279304,-500.0,0.00024931,2]
[391645639,1760716279314,-505.29722277,0.00024931,2]
[391645640,1760716279324,-151.0,0.00024931,7]
[391645641,1760716279336,-159.321966,0.00024931,7]
[391645642,1760716279346,-270.74548663,0.00024931,2]
[391645643,1760716279356,-500.81542061,0.00024931,2]
[391645644,1760716279366,-324.33994151,0.00024931,2]
[391645645,1760716279376,-500.0,0.00024931,2]
[391645646,1760716279387,-500.0,0.00024931,2]
[391645647,1760716279397,-500.0,0.00024931,2]
[391645648,1760716279406,-151.0,0.00024931,7]
[391645649,1760716279416,-159.321966,0.00024931,7]
[391645650,1760716279426,-1262.016074,0.00024931,7]